[Event "LJ Slovak Open 2022"]
[Site "Liptovsky Jan"]
[Date "2022.06.26"]
[Round "7.45"]
[White "Nedoba, Jakub"]
[Black "Lacko, Stanislav"]
[Result "0-1"]
[ECO "D03"]
[WhiteElo "1158"]
[BlackElo "1462"]
[Annotator "NA RC"]
[PlyCount "144"]
[EventDate "2022.06.23"]
[EventType "swiss"]
[EventCountry "SVK"]
[SourceTitle "playchess.com"]
[Source "ChessBase"]
[SourceQuality "1"]
[TimeControl "3600+30"]

1. d4 {[%emt 0:01:19]} e6 {[%emt 0:00:12]} 2. Nf3 {[%emt 0:00:41]} Nf6 {[%emt 0:00:14]} 3. Bg5 {[%emt 0:02:01]} d5 {[%emt 0:00:56]} 4. e3 {[%emt 0:00:46]} h6 {[%emt 0:00:54]} 5. Bh4 {[%emt 0:00:38]} Nbd7 {[%emt 0:00:50]} 6. Nbd2 {[%emt 0:00:50]} c5 {[%emt 0:01:10]} 7. c3 {[%emt 0:00:53]} b6 {[%emt 0:02:20]} 8. Bd3 {[%emt 0:00:29]} Bb7 {[%emt 0:00:23]} 9. Ne5 {[%emt 0:02:06]} Be7 {[%emt 0:00:17]} 10. Ndf3 {[%emt 0:02:35]} O-O {[%emt 0:00:44]} 11. Nxd7 {[%emt 0:05:12]} Nxd7 {[%emt 0:00:46]} 12. Bxe7 {[%emt 0:01:49]} Qxe7 {[%emt 0:00:14]} 13. O-O {[%emt 0:00:41]} Rac8 {[%emt 0:02:42]} 14. a4 {[%emt 0:00:48]} e5 {[%emt 0:01:32]} 15. dxe5 {[%emt 0:01:25]} Nxe5 {[%emt 0:00:13]} 16. Be2 {[%emt 0:00:18]} Rfd8 {[%emt 0:00:54]} 17. Nxe5 {[%emt 0:01:12]} Qxe5 {[%emt 0:00:16]} 18. Bf3 {[%emt 0:00:46]} Rd7 {[%emt 0:01:33]} 19. Qb1 {[%emt 0:01:53]} Rcd8 {[%emt 0:00:39]} 20. Bg4 {[%emt 0:04:06]} Rd6 {[%emt 0:04:02]} 21. Bf3 {[%emt 0:01:15]} Ba6 {[%emt 0:02:36]} 22. Re1 {[%emt 0:01:00]} Qg5 {[%emt 0:00:42]} 23. Be2 {[%emt 0:00:54]} Bc8 {[%emt 0:00:34]} 24. Qd1 {[%emt 0:01:26]} Rg6 {[%emt 0:02:36]} 25. Bf3 {[%emt 0:01:07]} Bh3 {[%emt 0:00:49]} 26. g3 {[%emt 0:00:29]} Rf6 {[%emt 0:00:51]} 27. Qe2 {[%emt 0:01:37]} Qf5 {[%emt 0:01:23]} 28. Bg2 {[%emt 0:00:37]} Bg4 {[%emt 0:00:56]} 29. Qf1 {[%emt 0:01:28]} Qc2 {[%emt 0:01:06]} 30. Rab1 {[%emt 0:03:30]} Qxa4 {[%emt 0:00:21]} 31. Ra1 {[%emt 0:02:28]} Qb3 {[%emt 0:00:40]} 32. Rxa7 {[%emt 0:05:37]} Qxb2 {[%emt 0:01:08]} 33. f3 {[%emt 0:01:41]} Qxc3 {[%emt 0:00:35]} 34. Qf2 {[%emt 0:02:18]} Bxf3 {[%emt 0:04:21]} 35. Bxf3 {[%emt 0:00:29]} Rxf3 {[%emt 0:00:08]} 36. Qxf3 {[%emt 0:01:44]} Qxe1+ {[%emt 0:00:14]} 37. Kg2 {[%emt 0:00:45]} Rf8 {[%emt 0:00:23]} 38. Qxd5 {[%emt 0:03:20]} Qxe3 {[%emt 0:00:46]} 39. Rb7 {[%emt 0:01:48]} Qe2+ {[%emt 0:00:36]} 40. Kh3 {[%emt 0:01:10]} Qe6+ {[%emt 0:00:17]} 41. Qxe6 {[%emt 0:01:29]} fxe6 {[%emt 0:00:15]} 42. Rxb6 {[%emt 0:00:16]} Rc8 {[%emt 0:00:27]} 43. Rxe6 {[%emt 0:00:30]} c4 {[%emt 0:00:07]} 44. Re1 {[%emt 0:01:45]} c3 {[%emt 0:00:12]} 45. Rc1 {[%emt 0:00:11]} c2 {[%emt 0:00:12]} 46. Kg4 {[%emt 0:01:12]} Kf7 {[%emt 0:00:17]} 47. Kf3 {[%emt 0:00:58]} Kf6 {[%emt 0:00:32]} 48. Kf4 {[%emt 0:00:56]} h5 {[%emt 0:01:33]} 49. h3 {[%emt 0:00:45]} g5+ {[%emt 0:00:44]} 50. Kf3 {[%emt 0:00:50]} Ke5 {[%emt 0:00:24]} 51. Ke3 {[%emt 0:01:38]} Rc3+ {[%emt 0:00:22]} 52. Kf2 {[%emt 0:00:49]} Kd4 {[%emt 0:00:49]} 53. g4 {[%emt 0:01:51]} h4 {[%emt 0:00:31]} 54. Ke2 {[%emt 0:04:29]} Kc4 {[%emt 0:00:47]} 55. Kd2 {[%emt 0:00:44]} Kb3 {[%emt 0:00:23]} 56. Rh1 {[%emt 0:04:14]} c1=Q+ {[%emt 0:01:00]} 57. Rxc1 {[%emt 0:00:22]} Rxc1 {[%emt 0:00:09]} 58. Kxc1 {[%emt 0:00:05]} Kc3 {[%emt 0:00:07]} 59. Kd1 {[%emt 0:00:10]} Kd3 {[%emt 0:00:09]} 60. Ke1 {[%emt 0:00:15]} Ke3 {[%emt 0:00:14]} 61. Kf1 {[%emt 0:00:24]} Kf3 {[%emt 0:00:24]} 62. Kg1 {[%emt 0:00:29]} Kg3 {[%emt 0:00:13]} 63. Kh1 {[%emt 0:00:30]} Kxh3 {[%emt 0:00:12]} 64. Kg1 {[%emt 0:00:09]} Kxg4 {[%emt 0:00:16]} 65. Kg2 {[%emt 0:00:19]} Kf4 {[%emt 0:00:17]} 66. Kh3 {[%emt 0:00:54]} g4+ {[%emt 0:03:03]} 67. Kg2 {[%emt 0:00:46]} g3 {[%emt 0:02:26]} 68. Kh1 {[%emt 0:00:34]} h3 {[%emt 0:00:35]} 69. Kg1 {[%emt 0:00:29]} Kf3 {[%emt 0:00:22]} 70. Kh1 {[%emt 0:00:27]} g2+ {[%emt 0:00:19]} 71. Kg1 {[%emt 0:00:18]} h2+ {[%emt 0:00:13]} 72. Kxh2 {[%emt 0:00:13]} Kf2 {[%emt 0:00:10]} 0-1

[Event "LJ Slovak Open 2022"]
[Site "Liptovsky Jan"]
[Date "2022.06.26"]
[Round "7.46"]
[White "Sotnik, Simon"]
[Black "Muller, Martin"]
[Result "0-1"]
[ECO "D00"]
[WhiteElo "1038"]
[BlackElo "1476"]
[Annotator "NA RC"]
[PlyCount "52"]
[EventDate "2022.06.23"]
[EventType "swiss"]
[EventCountry "SVK"]
[SourceTitle "playchess.com"]
[Source "ChessBase"]
[SourceQuality "1"]
[TimeControl "3600+30"]

1. d4 {[%emt 0:00:24]} Nf6 {[%emt 0:00:47]} 2. Nc3 {[%emt 0:01:22]} d5 {[%emt 0:03:41]} 3. Nf3 {[%emt 0:05:28]} Nc6 {[%emt 0:07:33]} 4. Bg5 {[%emt 0:05:46]} Bf5 {[%emt 0:01:52]} 5. e3 {[%emt 0:02:11]} Nb4 {[%emt 0:07:38]} 6. Bd3 {[%emt 0:02:25]} Nxd3+ {[%emt 0:00:26]} 7. cxd3 {[%emt 0:00:35]} h6 {[%emt 0:01:26]} 8. Bxf6 {[%emt 0:00:40]} exf6 {[%emt 0:00:46]} 9. e4 {[%emt 0:01:45]} dxe4 {[%emt 0:01:13]} 10. dxe4 {[%emt 0:00:25]} Bg4 {[%emt 0:00:19]} 11. h3 {[%emt 0:01:39]} Bh5 {[%emt 0:00:27]} 12. O-O {[%emt 0:01:04]} Be7 {[%emt 0:02:11]} 13. Qd3 {[%emt 0:02:31]} Bxf3 {[%emt 0:04:23]} 14. Qxf3 {[%emt 0:01:25]} Qxd4 {[%emt 0:00:11]} 15. Rad1 {[%emt 0:00:18]} Qe5 {[%emt 0:00:11]} 16. Rd5 {[%emt 0:01:45]} Qe6 {[%emt 0:01:24]} 17. Rfd1 {[%emt 0:00:41]} O-O {[%emt 0:00:33]} 18. Qf5 {[%emt 0:00:49]} a6 {[%emt 0:07:01]} 19. Na4 {[%emt 0:01:40]} b6 {[%emt 0:05:01]} 20. Qxe6 {[%emt 0:01:00]} fxe6 {[%emt 0:00:15]} 21. Rd7 {[%emt 0:00:32]} Bd6 {[%emt 0:00:12]} 22. Rd3 {[%emt 0:00:36]} Rf7 {[%emt 0:00:11]} 23. Rxf7 {[%emt 0:00:24]} Kxf7 {[%emt 0:00:05]} 24. g3 {[%emt 0:00:59]} Ke7 {[%emt 0:01:21]} 25. Kg2 {[%emt 0:00:29]} Rd8 {[%emt 0:00:17]} 26. Rc3 {[%emt 0:00:30]} b5 {[%emt 0:01:42]} 0-1

[Event "LJ Slovak Open 2022"]
[Site "Liptovsky Jan"]
[Date "2022.06.26"]
[Round "7.47"]
[White "Stefanides, Karol"]
[Black "Socha, Wiktor"]
[Result "1/2-1/2"]
[ECO "D05"]
[WhiteElo "1438"]
[BlackElo "1020"]
[Annotator "NA RC"]
[PlyCount "46"]
[EventDate "2022.06.23"]
[EventType "swiss"]
[EventCountry "SVK"]
[SourceTitle "playchess.com"]
[Source "ChessBase"]
[SourceQuality "1"]
[TimeControl "3600+30"]

1. d4 {[%emt 0:00:12]} d5 {[%emt 0:00:04]} 2. Nf3 {[%emt 0:00:11]} Nf6 {[%emt 0:00:05]} 3. e3 {[%emt 0:00:14]} e6 {[%emt 0:00:52]} 4. Bd3 {[%emt 0:00:26]} c5 {[%emt 0:01:02]} 5. c3 {[%emt 0:00:10]} Bd6 {[%emt 0:01:06]} 6. O-O {[%emt 0:01:30]} O-O {[%emt 0:00:36]} 7. Re1 {[%emt 0:00:32]} Re8 {[%emt 0:03:55]} 8. Nbd2 {[%emt 0:00:49]} c4 {[%emt 0:03:49]} 9. Bf1 {[%emt 0:01:37]} a6 {[%emt 0:02:49]} 10. e4 {[%emt 0:02:28]} dxe4 {[%emt 0:00:30]} 11. Nxe4 {[%emt 0:00:30]} Nxe4 {[%emt 0:00:14]} 12. Rxe4 {[%emt 0:00:20]} b5 {[%emt 0:00:18]} 13. Re1 {[%emt 0:00:16]} Bb7 {[%emt 0:04:18]} 14. g3 {[%emt 0:00:04]} Nd7 {[%emt 0:00:49]} 15. Bg2 {[%emt 0:01:30]} e5 {[%emt 0:03:02]} 16. dxe5 {[%emt 0:06:01]} Nxe5 {[%emt 0:00:30]} 17. Nxe5 {[%emt 0:00:30]} Bxg2 {[%emt 0:00:24]} 18. Kxg2 {[%emt 0:02:10]} Bxe5 {[%emt 0:00:31]} 19. Be3 {[%emt 0:00:30]} g6 {[%emt 0:04:12]} 20. a3 {[%emt 0:06:25]} Bg7 {[%emt 0:02:36]} 21. Qf3 {[%emt 0:01:51]} Qc7 {[%emt 0:08:18]} 22. Red1 {[%emt 0:00:24]} h6 {[%emt 0:01:35]} 23. h4 {[%emt 0:01:39]} Qe7 {[%emt 0:04:17]} 1/2-1/2

[Event "LJ Slovak Open 2022"]
[Site "Liptovsky Jan"]
[Date "2022.06.26"]
[Round "7.48"]
[White "Zelenka, Matej"]
[Black "Pavlov Jakub"]
[Result "1-0"]
[ECO "C46"]
[WhiteElo "1400"]
[BlackElo "1000"]
[Annotator "NA RC"]
[PlyCount "109"]
[EventDate "2022.06.23"]
[EventType "swiss"]
[EventCountry "SVK"]
[SourceTitle "playchess.com"]
[Source "ChessBase"]
[SourceQuality "1"]
[TimeControl "3600+30"]

1. e4 {[%emt 0:00:04]} e5 {[%emt 0:00:08]} 2. Nf3 {[%emt 0:00:05]} Nc6 {[%emt 0:00:46]} 3. Nc3 {[%emt 0:00:21]} Bc5 {[%emt 0:00:46]} 4. Nxe5 {[%emt 0:00:29]} Nxe5 {[%emt 0:00:30]} 5. d4 {[%emt 0:00:17]} Bxd4 {[%emt 0:00:05]} 6. Qxd4 {[%emt 0:00:07]} d6 {[%emt 0:00:34]} 7. Be3 {[%emt 0:00:52]} Nf6 {[%emt 0:01:17]} 8. O-O-O {[%emt 0:01:25]} a6 {[%emt 0:01:54]} 9. f4 {[%emt 0:00:18]} Nc6 {[%emt 0:00:42]} 10. Qd2 {[%emt 0:02:01]} Qe7 {[%emt 0:01:00]} 11. Nd5 {[%emt 0:00:55]} Nxd5 {[%emt 0:01:02]} 12. exd5 {[%emt 0:00:08]} Nd8 {[%emt 0:01:04]} 13. Bd3 {[%emt 0:00:18]} O-O {[%emt 0:00:52]} 14. Rhe1 {[%emt 0:00:09]} Bg4 {[%emt 0:02:49]} 15. Be2 {[%emt 0:00:16]} Bxe2 {[%emt 0:01:05]} 16. Rxe2 {[%emt 0:00:20]} b5 {[%emt 0:00:49]} 17. Rde1 {[%emt 0:00:57]} Qd7 {[%emt 0:00:41]} 18. Qc3 {[%emt 0:01:04]} Nb7 {[%emt 0:01:20]} 19. g4 {[%emt 0:00:12]} a5 {[%emt 0:01:35]} 20. Bd4 {[%emt 0:00:29]} b4 {[%emt 0:00:24]} 21. Qc6 {[%emt 0:00:06]} Qxc6 {[%emt 0:00:21]} 22. dxc6 {[%emt 0:00:06]} Nd8 {[%emt 0:00:28]} 23. c3 {[%emt 0:05:59]} Nxc6 {[%emt 0:00:26]} 24. Kc2 {[%emt 0:03:46]} Rfb8 {[%emt 0:03:57]} 25. b3 {[%emt 0:01:03]} Nxd4+ {[%emt 0:03:02]} 26. cxd4 {[%emt 0:00:07]} Kf8 {[%emt 0:00:38]} 27. Kd3 {[%emt 0:00:36]} d5 {[%emt 0:00:41]} 28. Re7 {[%emt 0:00:13]} Re8 {[%emt 0:00:15]} 29. Rxe8+ {[%emt 0:00:47]} Rxe8 {[%emt 0:00:08]} 30. Rc1 {[%emt 0:00:07]} Re4 {[%emt 0:01:07]} 31. Rxc7 {[%emt 0:00:21]} Rxf4 {[%emt 0:00:09]} 32. Rc5 {[%emt 0:00:09]} Rxg4 {[%emt 0:00:54]} 33. Rxd5 {[%emt 0:00:06]} Rg2 {[%emt 0:00:28]} 34. Rxa5 {[%emt 0:00:10]} Rxh2 {[%emt 0:02:05]} 35. d5 {[%emt 0:00:30]} Ke7 {[%emt 0:00:30]} 36. Kd4 {[%emt 0:00:42]} Rd2+ {[%emt 0:03:56]} 37. Kc4 {[%emt 0:01:30]} Rc2+ {[%emt 0:02:22]} 38. Kxb4 {[%emt 0:00:16]} Rc7 {[%emt 0:00:10]} 39. Ra6 {[%emt 0:01:57]} Rd7 {[%emt 0:00:36]} 40. Kc5 {[%emt 0:00:51]} h5 {[%emt 0:00:04]} 41. Ra4 {[%emt 0:01:58]} g5 {[%emt 0:00:30]} 42. Re4+ {[%emt 0:00:37]} Kf6 {[%emt 0:04:26]} 43. Kc6 {[%emt 0:00:39]} Rd8 {[%emt 0:00:21]} 44. d6 {[%emt 0:00:17]} h4 {[%emt 0:00:10]} 45. Kc7 {[%emt 0:00:12]} Ra8 {[%emt 0:00:38]} 46. d7 {[%emt 0:01:25]} h3 {[%emt 0:00:16]} 47. Re8 {[%emt 0:02:32]} Ra7+ {[%emt 0:00:38]} 48. Kc6 {[%emt 0:00:05]} Rxd7 {[%emt 0:00:10]} 49. Kxd7 {[%emt 0:00:08]} g4 {[%emt 0:01:07]} 50. Rh8 {[%emt 0:00:17]} Kg5 {[%emt 0:04:40]} 51. b4 {[%emt 0:00:28]} Kf4 {[%emt 0:01:10]} 52. b5 {[%emt 0:00:08]} Kg3 {[%emt 0:03:41]} 53. b6 {[%emt 0:00:07]} f5 {[%emt 0:00:05]} 54. b7 {[%emt 0:00:09]} f4 {[%emt 0:00:37]} 55. b8=Q {[%emt 0:00:05]} 1-0

[Event "LJ Slovak Open 2022"]
[Site "Liptovsky Jan"]
[Date "2022.06.26"]
[Round "7.49"]
[White "Prochazka Michal"]
[Black "Polackova, Eva"]
[Result "1/2-1/2"]
[ECO "B10"]
[WhiteElo "1110"]
[BlackElo "1253"]
[Annotator "NA RC"]
[PlyCount "47"]
[EventDate "2022.06.23"]
[EventType "swiss"]
[EventCountry "SVK"]
[SourceTitle "playchess.com"]
[Source "ChessBase"]
[SourceQuality "1"]
[TimeControl "3600+30"]

1. e4 {[%emt 0:00:02]} c6 {[%emt 0:00:21]} 2. c4 {[%emt 0:01:53]} d5 {[%emt 0:01:55]} 3. exd5 {[%emt 0:01:25]} cxd5 {[%emt 0:00:58]} 4. cxd5 {[%emt 0:00:40]} Nf6 {[%emt 0:02:23]} 5. Nc3 {[%emt 0:00:46]} Nxd5 {[%emt 0:02:00]} 6. Nf3 {[%emt 0:01:18]} Bg4 {[%emt 0:03:13]} 7. d3 {[%emt 0:03:19]} e6 {[%emt 0:02:25]} 8. Be2 {[%emt 0:02:04]} Bb4 {[%emt 0:02:22]} 9. Bd2 {[%emt 0:01:40]} O-O {[%emt 0:02:20]} 10. O-O {[%emt 0:04:03]} Nc6 {[%emt 0:02:41]} 11. Nxd5 {[%emt 0:48:50]} Bxd2 {[%emt 0:45:22]} 12. Qxd2 {[%emt 0:00:30]} Qxd5 {[%emt 0:00:30]} 13. h3 {[%emt 0:00:30]} Bh5 {[%emt 0:00:30]} 14. Rfc1 {[%emt 0:00:30]} Rfd8 {[%emt 0:00:30]} 15. Rc3 {[%emt 0:00:30]} Rac8 {[%emt 0:00:30]} 16. a3 {[%emt 0:00:30]} Ne5 {[%emt 0:00:30]} 17. Rac1 {[%emt 0:00:30]} Rxc3 {[%emt 0:00:30]} 18. Rxc3 {[%emt 0:00:30]} Nxf3+ {[%emt 0:00:30]} 19. Bxf3 {[%emt 0:00:30]} Bxf3 {[%emt 0:00:30]} 20. gxf3 {[%emt 0:00:30]} h6 {[%emt 0:00:30]} 21. Qe3 {[%emt 0:00:30]} a6 {[%emt 0:00:30]} 22. Kg2 {[%emt 0:00:30]} Rd7 {[%emt 0:00:30]} 23. Qe4 {[%emt 0:00:30]} Qxe4 {[%emt 0:00:30]} 24. dxe4 {[%emt 0:00:30]} 1/2-1/2

[Event "LJ Slovak Open 2022"]
[Site "Liptovsky Jan"]
[Date "2022.06.26"]
[Round "7.50"]
[White "Carnecky, Michal"]
[Black "Veres Alex"]
[Result "1-0"]
[ECO "A28"]
[WhiteElo "1361"]
[BlackElo "1000"]
[Annotator "NA"]
[PlyCount "109"]
[EventDate "2022.06.23"]
[EventType "swiss"]
[EventCountry "SVK"]
[SourceTitle "playchess.com"]
[Source "ChessBase"]
[SourceQuality "1"]
[TimeControl "3600+30"]

1. c4 {[%emt 0:00:06]} e5 {[%emt 0:00:03]} 2. Nc3 {[%emt 0:00:13]} Nf6 {[%emt 0:00:14]} 3. a3 {[%emt 0:00:18]} d5 {[%emt 0:00:12]} 4. cxd5 {[%emt 0:00:16]} Nxd5 {[%emt 0:00:09]} 5. Nf3 {[%emt 0:01:48]} Nc6 {[%emt 0:00:16]} 6. e4 {[%emt 0:01:10]} Nxc3 {[%emt 0:00:15]} 7. bxc3 {[%emt 0:00:17]} Bc5 {[%emt 0:00:13]} 8. Bb5 {[%emt 0:01:06]} Bd7 {[%emt 0:00:15]} 9. d4 {[%emt 0:01:06]} exd4 {[%emt 0:00:18]} 10. cxd4 {[%emt 0:00:16]} Bb6 {[%emt 0:00:46]} 11. O-O {[%emt 0:05:07]} O-O {[%emt 0:00:30]} 12. d5 {[%emt 0:00:30]} Ne7 {[%emt 0:00:56]} 13. Bxd7 {[%emt 0:01:17]} Qxd7 {[%emt 0:00:07]} 14. a4 {[%emt 0:00:10]} c6 {[%emt 0:00:14]} 15. d6 {[%emt 0:01:03]} Nc8 {[%emt 0:00:32]} 16. a5 {[%emt 0:01:09]} Bc5 {[%emt 0:00:00]} 17. e5 {[%emt 0:02:01]} f6 {[%emt 0:00:00]} 18. Qc2 {[%emt 0:01:04]} Bxd6 {[%emt 0:00:58]} 19. exd6 {[%emt 0:00:31]} Nxd6 {[%emt 0:00:08]} 20. Rd1 {[%emt 0:00:22]} Qe6 {[%emt 0:00:43]} 21. Rxd6 {[%emt 0:02:44]} Qxd6 {[%emt 0:00:39]} 22. Ba3 {[%emt 0:00:10]} Qe6 {[%emt 0:00:46]} 23. Bxf8 {[%emt 0:00:26]} Rxf8 {[%emt 0:00:09]} 24. Qa2 {[%emt 0:02:41]} Qxa2 {[%emt 0:00:08]} 25. Rxa2 {[%emt 0:00:08]} Rd8 {[%emt 0:00:10]} 26. g3 {[%emt 0:01:42]} Kf7 {[%emt 0:00:31]} 27. Rb2 {[%emt 0:00:19]} Rd7 {[%emt 0:00:21]} 28. Nd2 {[%emt 0:00:42]} h5 {[%emt 0:00:16]} 29. Ne4 {[%emt 0:00:23]} g5 {[%emt 0:00:46]} 30. Nc5 {[%emt 0:00:24]} Re7 {[%emt 0:00:26]} 31. Nxb7 {[%emt 0:01:01]} h4 {[%emt 0:00:18]} 32. Kg2 {[%emt 0:00:29]} Re4 {[%emt 0:00:28]} 33. Nd6+ {[%emt 0:01:30]} Ke6 {[%emt 0:00:15]} 34. Nxe4 {[%emt 0:00:15]} Kf5 {[%emt 0:00:23]} 35. Nd6+ {[%emt 0:00:43]} Kg4 {[%emt 0:00:17]} 36. h3+ {[%emt 0:00:22]} Kh5 {[%emt 0:00:13]} 37. g4+ {[%emt 0:00:15]} Kg6 {[%emt 0:00:20]} 38. Rb7 {[%emt 0:00:13]} c5 {[%emt 0:00:21]} 39. Rxa7 {[%emt 0:00:17]} f5 {[%emt 0:00:13]} 40. gxf5+ {[%emt 0:00:22]} Kh5 {[%emt 0:00:12]} 41. f6 {[%emt 0:01:26]} g4 {[%emt 0:00:30]} 42. f7 {[%emt 0:00:30]} g3 {[%emt 0:00:08]} 43. fxg3 {[%emt 0:00:26]} hxg3 {[%emt 0:00:02]} 44. Kxg3 {[%emt 0:00:10]} c4 {[%emt 0:00:04]} 45. Nxc4 {[%emt 0:00:28]} Kg6 {[%emt 0:00:11]} 46. f8=R {[%emt 0:01:23]} Kh6 {[%emt 0:00:30]} 47. Rb8 {[%emt 0:00:30]} Kh5 {[%emt 0:00:09]} 48. Rb5+ {[%emt 0:00:23]} Kg6 {[%emt 0:00:28]} 49. Rb6+ {[%emt 0:00:14]} Kg5 {[%emt 0:00:15]} 50. h4+ {[%emt 0:00:39]} Kh5 {[%emt 0:00:17]} 51. Rb5+ {[%emt 0:00:18]} Kg6 {[%emt 0:00:22]} 52. Kg4 {[%emt 0:01:03]} Kh6 {[%emt 0:00:11]} 53. Ra6+ {[%emt 0:00:23]} Kg7 {[%emt 0:00:10]} 54. Rb7+ {[%emt 0:00:11]} Kh8 {[%emt 0:00:33]} 55. Ra8# {[%emt 0:00:11]} 1-0

[Event "LJ Slovak Open 2022"]
[Site "Liptovsky Jan"]
[Date "2022.06.26"]
[Round "7.51"]
[White "Ihnat, Marek"]
[Black "Livnansky, Tomas"]
[Result "1-0"]
[ECO "C02"]
[WhiteElo "2045"]
[BlackElo "1244"]
[Annotator "NA RC"]
[PlyCount "29"]
[EventDate "2022.06.23"]
[EventType "swiss"]
[EventCountry "SVK"]
[SourceTitle "playchess.com"]
[Source "ChessBase"]
[SourceQuality "1"]
[TimeControl "3600+30"]

1. e4 {[%emt 0:00:09]} e6 {[%emt 0:00:08]} 2. d4 {[%emt 0:00:17]} d5 {[%emt 0:00:12]} 3. e5 {[%emt 0:00:20]} c5 {[%emt 0:00:14]} 4. c3 {[%emt 0:00:13]} Nc6 {[%emt 0:01:02]} 5. Nf3 {[%emt 0:00:12]} Qb6 {[%emt 0:00:41]} 6. a3 {[%emt 0:00:39]} Nge7 {[%emt 0:02:54]} 7. b4 {[%emt 0:02:08]} cxd4 {[%emt 0:02:52]} 8. cxd4 $11 {[%emt 0:01:32]} Nf5 {[%emt 0:00:33]} 9. Bb2 {[%emt 0:00:26]} Be7 {[%emt 0:01:32]} 10. g4 {[%emt 0:02:21]} Nh6 {[%emt 0:00:32]} 11. h3 {[%emt 0:01:31]} O-O {[%emt 0:00:18]} 12. Be2 {[%emt 0:04:29]} f6 {[%emt 0:02:35]} 13. exf6 {[%emt 0:01:44]} Nf5 {[%emt 0:09:47]} 14. Rg1 {[%emt 0:22:43]} h6 {[%emt 0:21:48]} 15. Rh1 {[%emt 0:03:58]} 1-0

[Event "LJ Slovak Open 2022"]
[Site "Liptovsky Jan"]
[Date "2022.06.26"]
[Round "7.52"]
[White "Bodnar, Frantisek"]
[Black "Stricova Julia Nela"]
[Result "1-0"]
[ECO "D02"]
[WhiteElo "1379"]
[BlackElo "1149"]
[Annotator "NA"]
[PlyCount "123"]
[EventDate "2022.06.23"]
[EventType "swiss"]
[EventCountry "SVK"]
[SourceTitle "playchess.com"]
[Source "ChessBase"]
[SourceQuality "1"]
[TimeControl "3600+30"]

1. d4 {[%emt 0:00:08]} d5 {[%emt 0:00:05]} 2. Bf4 {[%emt 0:00:11]} Nc6 {[%emt 0:00:51]} 3. e3 {[%emt 0:00:05]} a6 {[%emt 0:00:18]} 4. Nf3 {[%emt 0:00:18]} Nf6 {[%emt 0:00:38]} 5. h3 {[%emt 0:00:10]} Bf5 {[%emt 0:00:56]} 6. c3 {[%emt 0:00:34]} e6 {[%emt 0:00:24]} 7. Bd3 {[%emt 0:00:47]} Bg6 {[%emt 0:00:46]} 8. Ne5 {[%emt 0:02:00]} Nxe5 {[%emt 0:00:39]} 9. Bxe5 {[%emt 0:00:14]} Bd6 {[%emt 0:01:16]} 10. Bxd6 {[%emt 0:03:11]} Qxd6 {[%emt 0:00:10]} 11. O-O {[%emt 0:00:12]} Bxd3 {[%emt 0:00:19]} 12. Qxd3 {[%emt 0:00:02]} O-O {[%emt 0:00:17]} 13. Nd2 {[%emt 0:00:04]} h6 {[%emt 0:02:13]} 14. c4 {[%emt 0:00:22]} c6 {[%emt 0:01:40]} 15. c5 {[%emt 0:00:22]} Qc7 {[%emt 0:00:23]} 16. b4 {[%emt 0:00:55]} b6 {[%emt 0:01:37]} 17. Rfb1 {[%emt 0:01:02]} bxc5 {[%emt 0:02:05]} 18. bxc5 {[%emt 0:02:02]} Rfb8 {[%emt 0:01:18]} 19. Rxb8+ {[%emt 0:00:59]} Qxb8 {[%emt 0:00:16]} 20. Rb1 {[%emt 0:00:12]} Qc7 {[%emt 0:01:19]} 21. Rb6 {[%emt 0:00:11]} Qc8 {[%emt 0:02:43]} 22. a4 {[%emt 0:00:18]} a5 {[%emt 0:00:34]} 23. Qb1 {[%emt 0:00:49]} g6 {[%emt 0:07:45]} 24. Nf3 {[%emt 0:00:27]} Nd7 {[%emt 0:00:56]} 25. Rb2 {[%emt 0:00:52]} Rb8 {[%emt 0:01:14]} 26. Nd2 {[%emt 0:00:19]} Rxb2 {[%emt 0:00:59]} 27. Qxb2 {[%emt 0:00:02]} Qb8 {[%emt 0:00:21]} 28. Qxb8+ {[%emt 0:00:04]} Nxb8 {[%emt 0:00:10]} 29. Nb3 {[%emt 0:00:23]} f6 {[%emt 0:01:16]} 30. Nxa5 {[%emt 0:00:08]} e5 {[%emt 0:00:18]} 31. Nb7 {[%emt 0:00:04]} exd4 {[%emt 0:01:42]} 32. exd4 {[%emt 0:00:04]} Kf7 {[%emt 0:01:01]} 33. a5 {[%emt 0:00:09]} Ke6 {[%emt 0:00:41]} 34. f3 {[%emt 0:00:36]} Kf5 {[%emt 0:00:36]} 35. Kf2 {[%emt 0:00:02]} Na6 {[%emt 0:02:53]} 36. Nd8 {[%emt 0:00:27]} Nb8 {[%emt 0:01:04]} 37. g3 {[%emt 0:00:23]} g5 {[%emt 0:01:04]} 38. a6 {[%emt 0:01:12]} Nxa6 {[%emt 0:00:45]} 39. Nxc6 {[%emt 0:00:02]} Nc7 {[%emt 0:01:07]} 40. Nd8 {[%emt 0:00:35]} h5 {[%emt 0:01:27]} 41. Ke3 {[%emt 0:01:36]} g4 {[%emt 0:01:51]} 42. h4 {[%emt 0:00:16]} Ne6 {[%emt 0:00:56]} 43. Nxe6 {[%emt 0:00:14]} Kxe6 {[%emt 0:00:10]} 44. fxg4 {[%emt 0:00:26]} hxg4 {[%emt 0:00:20]} 45. Kf4 {[%emt 0:00:07]} f5 {[%emt 0:00:28]} 46. h5 {[%emt 0:00:33]} Kf6 {[%emt 0:00:42]} 47. c6 {[%emt 0:00:18]} Ke6 {[%emt 0:00:48]} 48. h6 {[%emt 0:00:11]} Kd6 {[%emt 0:00:32]} 49. Kxf5 {[%emt 0:00:11]} Kxc6 {[%emt 0:00:12]} 50. h7 {[%emt 0:00:02]} Kb5 {[%emt 0:00:38]} 51. h8=Q {[%emt 0:00:13]} Kc4 {[%emt 0:00:15]} 52. Ke5 {[%emt 0:00:04]} Kd3 {[%emt 0:00:20]} 53. Qh5 {[%emt 0:00:16]} Kc4 {[%emt 0:00:16]} 54. Qxg4 {[%emt 0:00:04]} Kd3 {[%emt 0:00:37]} 55. Kxd5 {[%emt 0:00:18]} Ke3 {[%emt 0:00:17]} 56. Qf4+ {[%emt 0:00:25]} Kd3 {[%emt 0:00:19]} 57. Qf3+ {[%emt 0:00:14]} Kc2 {[%emt 0:00:14]} 58. Kc4 {[%emt 0:00:15]} Kd2 {[%emt 0:00:15]} 59. d5 {[%emt 0:00:20]} Kc2 {[%emt 0:00:20]} 60. Qe2+ {[%emt 0:00:18]} Kc1 {[%emt 0:00:20]} 61. Kc3 {[%emt 0:00:29]} Kb1 {[%emt 0:00:35]} 62. Qb2# {[%emt 0:00:09]} 1-0